[Event "FIDE Women's Grand Swiss 2023"]
[Site "Villa Marina, Douglas, Isle of Man, Isle Of Man"]
[Date "2023.10.27"]
[Round "3.4"]
[White "Guichard, Pauline"]
[Black "Muzychuk, Mariya"]
[Result "1/2-1/2"]
[TimeControl "40/90 + 30 + 30s/move"]
[WhiteFideId "639370"]
[BlackFideId "14114550"]
[WhiteElo "2358"]
[BlackElo "2519"]

1. d4 {[%clk 01:30:57]} {[%emt 00:00:02]} Nf6 {[%clk 01:30:53]} {[%emt
00:00:07]} 2. c4 {[%clk 01:31:19]} {[%emt 00:00:08]} e6 {[%clk 01:31:07]}
{[%emt 00:00:16]} 3. Nf3 {[%clk 01:31:35]} {[%emt 00:00:13]} d5 {[%clk
01:30:42]} {[%emt 00:00:55]} 4. Nc3 {[%clk 01:31:48]} {[%emt 00:00:17]} c6
{[%clk 01:30:52]} {[%emt 00:00:21]} 5. e3 {[%clk 01:32:02]} {[%emt 00:00:16]}
Nbd7 {[%clk 01:31:13]} {[%emt 00:00:10]} 6. Qc2 {[%clk 01:32:13]} {[%emt
00:00:18]} Bd6 {[%clk 01:31:05]} {[%emt 00:00:38]} 7. Bd3 {[%clk 01:32:28]}
{[%emt 00:00:14]} O-O {[%clk 01:30:08]} {[%emt 00:01:26]} 8. O-O {[%clk
01:32:28]} {[%emt 00:00:30]} dxc4 {[%clk 01:30:02]} {[%emt 00:00:38]} 9. Bxc4
{[%clk 01:32:49]} {[%emt 00:00:09]} b5 {[%clk 01:30:17]} {[%emt 00:00:15]} 10.
Be2 {[%clk 01:33:04]} {[%emt 00:00:14]} Bb7 {[%clk 01:30:00]} {[%emt 00:00:47]}
11. e4 {[%clk 01:32:56]} {[%emt 00:00:38]} e5 {[%clk 01:29:57]} {[%emt
00:00:33]} 12. dxe5 {[%clk 01:32:44]} {[%emt 00:00:41]} Nxe5 {[%clk 01:30:22]}
{[%emt 00:00:06]} 13. Nd4 {[%clk 01:32:34]} {[%emt 00:00:39]} Neg4 {[%clk
01:27:50]} {[%emt 00:03:03]} 14. g3 {[%clk 01:32:35]} {[%emt 00:00:29]} Re8
{[%clk 01:26:23]} {[%emt 00:01:56]} 15. Nf5 {[%clk 01:29:15]} {[%emt 00:03:50]}
Bc5 {[%clk 01:25:38]} {[%emt 00:01:15]} 16. Bf4 {[%clk 01:26:32]} {[%emt
00:03:12]} Qb6 {[%clk 01:22:43]} {[%emt 00:03:26]} 17. Kg2 {[%clk 01:24:56]}
{[%emt 00:02:06]} g6 {[%clk 01:17:49]} {[%emt 00:05:24]} 18. h3 {[%clk
01:06:13]} {[%emt 00:19:12]} gxf5 {[%clk 01:17:13]} {[%emt 00:01:06]} 19. hxg4
{[%clk 01:05:53]} {[%emt 00:00:50]} Nxe4 {[%clk 01:17:12]} {[%emt 00:00:32]} 20.
gxf5 {[%clk 00:57:20]} {[%emt 00:09:02]} Nxc3 {[%clk 01:17:25]} {[%emt
00:00:17]} 21. bxc3 {[%clk 00:57:20]} {[%emt 00:00:30]} Bf8 {[%clk 01:17:33]}
{[%emt 00:00:22]} 22. Bf3 {[%clk 00:51:36]} {[%emt 00:06:14]} c5 {[%clk
01:16:46]} {[%emt 00:01:18]} 23. Bxb7 {[%clk 00:51:50]} {[%emt 00:00:16]} Qxb7+
{[%clk 01:17:11]} {[%emt 00:00:05]} 24. f3 {[%clk 00:52:08]} {[%emt 00:00:12]}
Qe7 {[%clk 01:09:08]} {[%emt 00:08:33]} 25. Rf2 {[%clk 00:42:15]} {[%emt
00:10:22]} Bg7 {[%clk 01:05:24]} {[%emt 00:04:15]} 26. Rh1 {[%clk 00:39:36]}
{[%emt 00:03:10]} Qf6 {[%clk 01:01:10]} {[%emt 00:04:44]} 27. Qb1 {[%clk
00:34:04]} {[%emt 00:06:02]} a6 {[%clk 00:55:21]} {[%emt 00:06:19]} 28. g4
{[%clk 00:33:50]} {[%emt 00:00:44]} Qxc3 {[%clk 00:48:12]} {[%emt 00:07:39]} 29.
f6 {[%clk 00:33:07]} {[%emt 00:01:12]} Qxf6 {[%clk 00:48:20]} {[%emt 00:00:22]}
30. Qxh7+ {[%clk 00:26:01]} {[%emt 00:07:36]} Kf8 {[%clk 00:48:46]} {[%emt
00:00:04]} 31. Kg3 {[%clk 00:12:29]} {[%emt 00:14:02]} Re6 {[%clk 00:38:49]}
{[%emt 00:10:27]} 32. Rd2 {[%clk 00:06:32]} {[%emt 00:06:27]} c4 {[%clk
00:15:00]} {[%emt 00:24:20]} 33. Rhd1 {[%clk 00:04:06]} {[%emt 00:02:55]} Qg6
{[%clk 00:08:40]} {[%emt 00:06:50]} 34. Rd8+ {[%clk 00:02:43]} {[%emt
00:01:53]} Rxd8 {[%clk 00:08:58]} {[%emt 00:00:12]} 35. Rxd8+ {[%clk 00:03:09]}
{[%emt 00:00:03]} Ke7 {[%clk 00:07:03]} {[%emt 00:02:25]} 36. Qg8 {[%clk
00:03:25]} {[%emt 00:00:14]} Bh6 {[%clk 00:06:32]} {[%emt 00:01:00]} 37. Re8+
{[%clk 00:01:46]} {[%emt 00:02:09]} Kd7 {[%clk 00:06:57]} {[%emt 00:00:06]} 38.
Rd8+ {[%clk 00:01:50]} {[%emt 00:00:26]} Ke7 {[%clk 00:07:25]} {[%emt
00:00:02]} 39. Re8+ {[%clk 00:01:03]} {[%emt 00:01:17]} Kd7 {[%clk 00:07:52]}
{[%emt 00:00:04]} 40. Rd8+ {[%clk 00:00:55]} {[%emt 00:00:37]} 1/2-1/2